Workbook

Sheet Έξοδα
B1: Προϋπολογισμός εκδήλωσης για [Όνομα εκδήλωσης] | H1: ΕΞΟΔΑ
B3: ΣΥΝΟΛΙΚΑ ΕΞΟΔΑ | G3: Εκτιμώμενα | H3: Πραγματικά
G4: =SUM(C11,C19,C25,C32,G11,G19,G24) -> 882.00 € | H4: =SUM(D11,D19,D25,D32,H11,H19,H24) -> 333.00 €
B6: Χώρος | C6: Εκτιμώμενα | D6: Πραγματικά | F6: Αναψυκτικά | G6: Εκτιμώμενα | H6: Πραγματικά
B7: Έξοδα αίθουσας και σάλας | C7: 500.00 € | F7: Φαγητό
B8: Προσωπικό χώρου | F8: Ποτά | G8: 20.00 €
B9: Εξοπλισμός | F9: Τραπεζομάντιλα | H9: 20.00 €
B10: Τραπέζια και καρέκλες | F10: Προσωπικό και φιλοδωρήματα
B11: Άθροισμα | C11: =SUBTOTAL(109,Πίνακας1[Εκτιμώμενα]) -> 500.00 € | D11: =SUBTOTAL(109,Πίνακας1[Πραγματικά]) -> 0.00 € | F11: Άθροισμα | G11: =SUBTOTAL(109,Πίνακας3[Εκτιμώμενα]) -> 20.00 € | H11: =SUBTOTAL(109,Πίνακας3[Πραγματικά]) -> 20.00 €
B13: Διακοσμήσεις | C13: Εκτιμώμενα | D13: Πραγματικά | F13: Πρόγραμμα | G13: Εκτιμώμενα | H13: Πραγματικά
B14: Λουλούδια | C14: 200.00 € | D14: 300.00 € | F14: Καλλιτέχνες
B15: Κεριά | F15: Ηχεία | G15: 30.00 €
B16: Φωτισμός | F16: Ταξίδι
B17: Μπαλόνια | F17: Ξενοδοχείο
B18: Χαρτικά | F18: Άλλο
B19: Άθροισμα | C19: =SUBTOTAL(109,Πίνακας4[Εκτιμώμενα]) -> 200.00 € | D19: =SUBTOTAL(109,Πίνακας4[Πραγματικά]) -> 300.00 € | F19: Άθροισμα | G19: =SUBTOTAL(109,Πίνακας5[Εκτιμώμενα]) -> 30.00 € | H19: =SUBTOTAL(109,Πίνακας5[Πραγματικά]) -> 0.00 €
B21: Δημοσιότητα | C21: Εκτιμώμενα | D21: Πραγματικά | F21: Βραβεία | G21: Εκτιμώμενα | H21: Πραγματικά
B22: Γραφικά | F22: Κορδέλες/Πλακέτες/Τρόπαια
B23: Φωτοαντιγραφή/Εκτύπωση | C23: 20.00 € | F23: Δώρα | G23: 100.00 €
B24: Ταχυδρομικά τέλη | F24: Άθροισμα | G24: =SUBTOTAL(109,Πίνακας7[Εκτιμώμενα]) -> 100.00 € | H24: =SUBTOTAL(109,Πίνακας7[Πραγματικά]) -> 0.00 €
B25: Άθροισμα | C25: =SUBTOTAL(109,Πίνακας6[Εκτιμώμενα]) -> 20.00 € | D25: =SUBTOTAL(109,Πίνακας6[Πραγματικά]) -> 0.00 €
B27: Διάφορα | C27: Εκτιμώμενα | D27: Πραγματικά
B28: Τηλέφωνο | D28: 13.00 €
B29: Μετακινήσεις | C29: 12.00 €
B30: Επιστολόχαρτα
B31: Υπηρεσίες φαξ
B32: Άθροισμα | C32: =SUBTOTAL(109,Πίνακας8[Εκτιμώμενα]) -> 12.00 € | D32: =SUBTOTAL(109,Πίνακας8[Πραγματικά]) -> 13.00 €

Sheet Έσοδα
B1: Προϋπολογισμός εκδήλωσης για [Όνομα εκδήλωσης] | G1: ΕΣΟΔΑ
B3: ΣΥΝΟΛΙΚΑ ΕΣΟΔΑ | F3: Εκτιμώμενα | G3: Πραγματικά
F4: =SUM(F11, F18, F25, F33) -> 1,936.00 € | G4: =SUM(G11,G18,G25, G33) -> 1,831.00 €
B6: ΠΡΟΣΕΛΕΥΣΕΙΣ
B7: Αρ. εκτιμώμενων | C7: Αρ. πραγματικών | D7: Τύπος | E7: Τιμή | F7: Εκτιμώμενα έσοδα | G7: Πραγματικά έσοδα
B8: 300 | C8: 278 | D8: Ενήλικες @ | E8: 5.00 € | F8: =B8*E8 -> 1,500.00 € | G8: =C8*E8 -> 1,390.00 €
B9: 197 | C9: 195 | D9: Παιδιά @ | E9: 2.00 € | F9: =B9*E9 -> 394.00 € | G9: =C9*E9 -> 390.00 €
B10: 42 | C10: 51 | D10: Άλλο @ | E10: 1.00 € | F10: =B10*E10 -> 42.00 € | G10: =C10*E10 -> 51.00 €
B11: Άθροισμα | F11: =SUBTOTAL(109,Πίνακας9[Εκτιμώμενα έσοδα]) -> 1,936.00 € | G11: =SUBTOTAL(109,Πίνακας9[Πραγματικά έσοδα]) -> 1,831.00 €
B13: ΔΙΑΦΗΜΊΣΕΙΣ ΣΤΟ ΠΡΌΓΡΑΜΜΑ
B14: Αρ. εκτιμώμενων | C14: Αρ. πραγματικών | D14: Τύπος | E14: Τιμή | F14: Εκτιμώμενα έσοδα | G14: Πραγματικά έσοδα
B15: 12 | D15: Εξώφυλλα @ | F15: =B15*E15 -> 0.00 € | G15: =C15*E15 -> 0.00 €
C16: 158 | D16: Μισές σελίδες @ | F16: =B16*E16 -> 0.00 € | G16: =C16*E16 -> 0.00 €
B17: 4 | D17: Ένα τέταρτο σελίδας @ | F17: =B17*E17 -> 0.00 € | G17: =C17*E17 -> 0.00 €
B18: Άθροισμα | F18: =SUBTOTAL(109,Πίνακας10[Εκτιμώμενα έσοδα]) -> 0.00 € | G18: =SUBTOTAL(109,Πίνακας10[Πραγματικά έσοδα]) -> 0.00 €
B20: ΕΚΘΕΤΕΣ/ΠΡΟΜΗΘΕΥΤΈΣ
B21: Αρ. εκτιμώμενων | C21: Αρ. πραγματικών | D21: Τύπος | E21: Τιμή | F21: Εκτιμώμενα έσοδα | G21: Πραγματικά έσοδα
B22: 23 | D22: Μεγάλα περίπτερα @ | F22: =B22*E22 -> 0.00 € | G22: =C22*E22 -> 0.00 €
B23: 354 | D23: Μεσαίο περίπτερα @ | F23: =B23*E23 -> 0.00 € | G23: =C23*E23 -> 0.00 €
B24: 56 | D24: Μικρά περίπτερα @ | F24: =B24*E24 -> 0.00 € | G24: =C24*E24 -> 0.00 €
B25: Άθροισμα | F25: =SUBTOTAL(109,Πίνακας11[Εκτιμώμενα έσοδα]) -> 0.00 € | G25: =SUBTOTAL(109,Πίνακας11[Πραγματικά έσοδα]) -> 0.00 €
B27: ΠΏΛΗΣΗ ΣΤΟΙΧΕΊΩΝ
B28: Αρ. εκτιμώμενων | C28: Αρ. πραγματικών | D28: Τύπος | E28: Τιμή | F28: Εκτιμώμενα έσοδα | G28: Πραγματικά έσοδα
D29: Είδη @ | F29: =B29*E29 -> 0.00 € | G29: =C29*E29 -> 0.00 €
B30: 123 | D30: Είδη @ | F30: =B30*E30 -> 0.00 € | G30: =C30*E30 -> 0.00 €
D31: Είδη @ | F31: =B31*E31 -> 0.00 € | G31: =C31*E31 -> 0.00 €
B32: 13 | D32: Είδη @ | F32: =B32*E32 -> 0.00 € | G32: =C32*E32 -> 0.00 €
B33: Άθροισμα | F33: =SUBTOTAL(109,Πϊνακας12[Εκτιμώμενα έσοδα]) -> 0.00 € | G33: =SUBTOTAL(109,Πϊνακας12[Πραγματικά έσοδα]) -> 0.00 €

Sheet Σύνοψη κερδών-ζημιών
B1: Προϋπολογισμός εκδήλωσης για [Όνομα εκδήλωσης] | G1: ΚΕΡΔΟΣ
G2: Σύνοψη ζημίας
C5: Εκτιμώμενα | D5: Πραγματικά
B6: Συνολικά έσοδα | C6: =Έσοδα!F4 -> 1,936.00 € | D6: =Έσοδα!G4 -> 1,831.00 €
B7: Συνολικά έξοδα | C7: =Έξοδα!G4 -> 882.00 € | D7: =Έξοδα!H4 -> 333.00 €
B9: Συνολικό κέρδος (ή ζημιά) | C9: =C6-C7 -> 1,054.00 € | D9: =D6-D7 -> 1,498.00 €
